bitfinex/quotes_SOLUSD_20250617
["timestamp","ask_amount","ask_price","bid_price","bid_amount"]
[1750143723464,32.48,153.42,153.41,5.23837114]
[1750143723667,5.76,153.42,153.41,5.52269428]
[1750143726353,5.76,153.42,153.41,5.23837114]
[1750143729462,12.27805501,153.42,153.41,5.23837114]
[1750143730668,12.27805501,153.42,153.39,0.28432314]
[1750143730860,12.27805501,153.42,153.41,5.23837114]
[1750143731055,38.97805501,153.42,153.41,5.23837114]
[1750143731566,38.97805501,153.42,153.39,5.23837114]
[1750143731863,38.97805501,153.42,153.38,26.0]
[1750143732061,5.23837114,153.41,153.37,5.23837114]
[1750143732369,26.7,153.4,153.37,5.23837114]
[1750143732861,26.7,153.4,153.38,5.23837114]
[1750143733167,33.21893935,153.4,153.38,5.23837114]
[1750143733553,6.51893935,153.4,153.38,5.23837114]
[1750143733758,26.7,153.39,153.38,5.23837114]
[1750143736264,26.7,153.39,153.38,5.52269428]
[1750143736467,5.76,153.41,153.39,0.28432314]
[1750143736653,32.46,153.41,153.4,5.23837114]
[1750143738171,5.76,153.41,153.39,0.28432314]
[1750143738375,32.46,153.41,153.4,5.23837114]
[1750143738750,32.46,153.41,153.4,5.52269428]
[1750143739070,5.76,153.41,153.4,5.52269428]
[1750143739846,26.7,153.42,153.41,0.28432314]
[1750143740071,26.7,153.42,153.41,5.52269428]
[1750143740371,6.51692551,153.45,153.41,5.52269428]
[1750143740573,6.51692551,153.45,153.43,5.23837114]
[1750143740783,26.7,153.44,153.43,5.23837114]
[1750143741275,6.51692551,153.45,153.43,5.23837114]
[1750143741455,26.7,153.44,153.43,5.23837114]
[1750143741865,33.21720542,153.44,153.43,5.23837114]
[1750143742172,33.21720542,153.44,153.41,0.28432314]
[1750143742351,33.21720542,153.44,153.39,26.0]
[1750143742559,33.21720542,153.44,153.41,5.23837114]
[1750143742756,6.51720542,153.44,153.41,5.23837114]
[1750143742963,26.7,153.43,153.41,5.23837114]
[1750143743577,33.21777045,153.43,153.41,5.23837114]
[1750143743780,33.21777045,153.43,153.38,26.28432314]
[1750143743963,33.21777045,153.43,153.41,5.23837114]
[1750143744363,38.45614159,153.43,153.38,31.23837114]
[1750143744765,54.75021706,153.43,153.38,31.23837114]
[1750143745577,54.75021706,153.43,153.39,5.23837114]
[1750143746085,49.51184592,153.43,153.39,5.23837114]
[1750143746287,54.75021706,153.43,153.39,5.23837114]
[1750143746867,49.51184592,153.43,153.4,5.23837114]
[1750143747480,54.75021706,153.43,153.39,5.23837114]
[1750143747674,33.21777045,153.43,153.4,5.23837114]
[1750143747878,32.46,153.42,153.41,5.23837114]
[1750143748077,32.46,153.42,153.38,26.0]
[1750143748374,32.46,153.42,153.4,5.23837114]
[1750143748601,6.51847989,153.41,153.4,5.23837114]
[1750143748988,33.21847989,153.41,153.4,5.23837114]
[1750143750585,33.21847989,153.41,153.38,26.0]
[1750143750791,33.21847989,153.41,153.39,5.23837114]
[1750143751094,26.7,153.4,153.39,5.23837114]
[1750143752289,33.21890482,153.4,153.39,5.23837114]
[1750143755796,38.45727596,153.4,153.28,5.23837114]
[1750143756132,5.23837114,153.35,153.3,13.22307114]
[1750143756297,26.7,153.34,153.31,0.14216157]
[1750143756473,26.7,153.35,153.33,31.23837114]
[1750143756780,26.7,153.35,153.34,5.23837114]
[1750143757382,5.23837114,153.38,153.32,0.28432314]
[1750143757581,32.46,153.37,153.33,5.23837114]
[1750143757786,38.98017995,153.37,153.33,5.23837114]
[1750143758381,32.46,153.36,153.33,5.23837114]
[1750143759096,38.9808907,153.36,153.33,31.23837114]
[1750143760176,38.9808907,153.36,153.34,5.23837114]
[1750143760803,38.9808907,153.36,153.33,26.0]
[1750143760996,38.9808907,153.36,153.34,5.23837114]
[1750143761374,32.46,153.36,153.35,5.23837114]
[1750143762805,26.7,153.36,153.35,5.23837114]
[1750143763191,12.27987489,153.38,153.35,5.23837114]
[1750143763395,12.27987489,153.38,153.33,26.0]
[1750143763396,5.76,153.38,153.37,5.23837114]
[1750143763591,32.46,153.38,153.37,5.23837114]
[1750143764090,5.76,153.38,153.37,5.52269428]
[1750143764509,5.76,153.38,153.37,0.28432314]
[1750143764703,5.76,153.38,153.37,5.52269428]
[1750143766807,26.7,153.4,153.37,5.52269428]
[1750143767113,26.7,153.4,153.39,5.23837114]
[1750143767498,12.27818606,153.42,153.39,5.23837114]
[1750143767693,8.63763091,153.45,153.41,5.23837114]
[1750143767694,6.51726051,153.44,153.41,5.23837114]
[1750143767899,5.76,153.45,153.43,5.23837114]
[1750143768101,32.46,153.45,153.44,5.23837114]
[1750143768701,5.76,153.45,153.44,5.23837114]
[1750143768902,32.46,153.45,153.44,5.23837114]
[1750143769503,12.27678071,153.45,153.42,5.23837114]
[1750143769706,6.51763018,153.43,153.4,5.23837114]
[1750143769911,26.7,153.42,153.41,5.23837114]
[1750143772893,38.45661706,153.42,153.36,33.8111]
[1750143773213,33.21824592,153.42,153.37,5.23837114]
[1750143773394,5.23837114,153.41,153.37,5.23837114]
[1750143773599,26.7,153.4,153.37,5.23837114]
[1750143774115,6.51932981,153.39,153.36,31.23837114]
[1750143774298,26.7,153.38,153.37,5.23837114]
[1750143777396,26.7,153.38,153.37,5.52269428]
[1750143778412,5.76,153.4,153.38,0.28432314]
[1750143778650,32.46,153.4,153.39,5.23837114]
[1750143778888,6.5181872,153.42,153.39,5.23837114]
[1750143779108,26.7,153.41,153.39,5.23837114]
[1750143779410,6.5181872,153.42,153.39,5.23837114]
[1750143779603,26.7,153.41,153.39,5.23837114]
[1750143781717,26.7,153.41,153.4,5.23837114]
[1750143782095,5.74,153.43,153.4,5.23837114]
[1750143782295,26.7,153.42,153.41,5.23837114]
[1750143784294,5.74,153.43,153.41,5.23837114]
[1750143784496,26.7,153.42,153.41,5.23837114]
[1750143784817,12.25763357,153.43,153.41,5.23837114]
[1750143785117,26.7,153.42,153.41,5.23837114]
[1750143785419,33.21805501,153.42,153.38,6.4861]
[1750143785719,33.21805501,153.42,153.39,5.23837114]
[1750143786304,26.7,153.42,153.41,5.23837114]
[1750143787622,5.74,153.43,153.41,5.23837114]
[1750143787913,26.7,153.42,153.41,5.23837114]
[1750143792931,26.7,153.42,153.41,26.0]
[1750143793629,26.7,153.42,153.41,31.23837114]
[1750143799428,26.68,153.42,153.41,31.52269428]
[1750143800332,5.74,153.43,153.42,26.28432314]
[1750143800507,5.74,153.43,153.42,31.52269428]
[1750143802330,32.42,153.43,153.42,31.52269428]
[1750143802530,32.42,153.43,153.42,31.23837114]
[1750143802928,26.68,153.43,153.42,31.23837114]
[1750143803130,26.68,153.43,153.42,26.0]
[1750143803324,26.68,153.43,153.41,5.23837114]
[1750143803522,26.68,153.43,153.4,5.52269428]
[1750143803827,26.68,153.43,153.4,5.38053271]
[1750143804232,26.68,153.43,153.41,31.23837114]
[1750143805736,33.19775856,153.43,153.4,5.23837114]
[1750143806523,26.68,153.43,153.41,5.23837114]
[1750143806944,33.19764697,153.43,153.41,5.23837114]
[1750143807119,26.68,153.43,153.41,5.23837114]
[1750143810539,33.19771022,153.43,153.41,5.23837114]
[1750143810736,5.23837114,153.42,153.36,32.4092]
[1750143810946,31.91837114,153.41,153.37,5.23837114]
[1750143811436,31.91837114,153.41,153.36,31.38053271]
[1750143811638,5.23837114,153.4,153.36,31.23837114]
[1750143811836,26.68,153.39,153.36,31.23837114]
[1750143812216,26.68,153.39,153.37,5.23837114]
[1750143813142,33.19935669,153.39,153.36,31.23837114]
[1750143814122,38.93935669,153.39,153.36,26.0]
[1750143814322,44.17772783,153.39,153.34,5.23837114]
[1750143815141,44.17772783,153.39,153.35,31.23837114]
[1750143815352,32.42,153.39,153.36,5.23837114]
[1750143815525,26.68,153.38,153.37,5.23837114]
[1750143816132,26.68,153.38,153.36,5.23837114]
[1750143816746,26.68,153.37,153.36,5.23837114]
[1750143816927,26.68,153.37,153.36,31.23837114]
[1750143817329,6.51901541,153.4,153.36,31.52269428]
[1750143817551,26.68,153.39,153.37,5.23837114]
[1750143819253,26.68,153.39,153.36,26.28432314]
[1750143819436,26.68,153.39,153.37,5.23837114]
[1750143821055,26.68,153.39,153.38,5.23837114]
[1750143821260,26.68,153.39,153.36,26.28432314]
[1750143821437,26.68,153.39,153.38,5.23837114]
[1750143824361,32.42,153.4,153.38,5.23837114]
[1750143824850,32.42,153.4,153.39,5.23837114]
[1750143827652,5.74,153.4,153.39,5.23837114]
[1750143827853,32.42,153.4,153.39,5.23837114]
[1750143829657,5.74,153.4,153.39,5.23837114]
[1750143829853,5.74,153.4,153.39,5.52269428]
[1750143830161,5.74,153.4,153.39,12.04202409]
[1750143830360,26.68,153.42,153.4,0.28432314]
[1750143830544,5.74,153.45,153.41,5.23837114]
[1750143830737,5.74,153.45,153.44,5.23837114]
[1750143830938,32.42,153.45,153.44,5.23837114]
[1750143833161,38.93678071,153.45,153.43,5.23837114]
[1750143833343,38.93678071,153.45,153.41,26.28432314]
[1750143833552,38.93678071,153.45,153.41,31.52269428]
[1750143834060,44.17515185,153.45,153.41,31.23837114]
[1750143834267,5.23837114,153.44,153.4,31.23837114]
[1750143834465,26.68,153.43,153.4,5.23837114]
[1750143834667,26.68,153.43,153.41,5.23837114]
[1750143836673,33.19775594,153.43,153.41,5.23837114]
[1750143837469,33.19775594,153.43,153.4,5.23837114]
[1750143839569,33.19775594,153.43,153.39,0.28432314]
[1750143839775,33.19775594,153.43,153.4,5.23837114]
[1750143840167,33.19775594,153.43,153.38,26.0]
[1750143840381,33.19775594,153.43,153.37,5.23837114]
[1750143840577,5.23837114,153.42,153.37,5.23837114]
[1750143840756,26.68,153.41,153.37,5.23837114]
[1750143841170,31.91837114,153.41,153.37,5.23837114]
[1750143841559,6.51890482,153.4,153.37,5.23837114]
[1750143841757,26.68,153.39,153.37,5.23837114]
[1750143844789,33.1993314,153.39,153.37,5.23837114]
[1750143845198,33.1993314,153.39,153.35,27.91412314]
[1750143845479,38.43770254,153.39,153.35,5.23837114]
[1750143845851,33.1993314,153.39,153.35,5.23837114]
[1750143846279,33.1993314,153.39,153.36,5.23837114]
[1750143846777,33.1993314,153.39,153.34,0.28432314]
[1750143846988,33.1993314,153.39,153.36,5.23837114]
[1750143847397,38.9393314,153.39,153.36,5.23837114]
[1750143847562,77.23148245,153.46,153.36,5.23837114]
[1750143847563,5.74,153.43,153.38,5.23837114]
[1750143847763,26.68,153.42,153.41,5.23837114]
[1750143849081,38.43642615,153.42,153.36,5.23837114]
[1750143849284,5.23837114,153.39,153.35,31.23837114]
[1750143849459,26.68,153.38,153.35,31.23837114]
[1750143849780,26.68,153.38,153.35,5.23837114]
[1750143849991,26.68,153.38,153.35,31.23837114]
[1750143850181,26.68,153.38,153.33,8.2948]
[1750143850182,31.91837114,153.38,153.34,5.23837114]
[1750143851074,33.20004352,153.38,153.34,5.23837114]
[1750143851484,33.20004352,153.38,153.35,5.23837114]
[1750143852391,38.43841466,153.38,153.34,5.52269428]
[1750143852558,38.43841466,153.38,153.34,0.28432314]
[1750143852764,5.23837114,153.37,153.33,5.23837114]
[1750143853075,26.68,153.36,153.33,5.23837114]
[1750143853267,33.20064185,153.36,153.34,5.23837114]
[1750143853462,33.20064185,153.36,153.33,5.52269428]
[1750143853879,26.68,153.36,153.33,5.52269428]
[1750143854087,26.68,153.36,153.34,5.23837114]
[1750143855791,26.68,153.36,153.35,5.23837114]
[1750143856085,33.20060511,153.36,153.34,5.23837114]
[1750143856591,33.20060511,153.36,153.33,0.28432314]
[1750143856770,5.23837114,153.34,153.29,11.33607114]
[1750143857091,26.68,153.33,153.3,0.14216157]
[1750143857289,26.68,153.33,153.3,0.28432314]
[1750143858191,26.68,153.33,153.32,5.23837114]
[1750143858487,26.68,153.33,153.32,5.52269428]
[1750143858690,26.68,153.33,153.32,31.52269428]
[1750143860593,6.52071744,153.36,153.32,31.52269428]
[1750143860892,26.68,153.35,153.34,5.23837114]
[1750143861772,26.68,153.35,153.33,5.23837114]
[1750143862492,26.68,153.35,153.34,5.23837114]
[1750143863300,26.68,153.35,153.33,0.28432314]
[1750143863507,26.68,153.35,153.34,5.23837114]
[1750143865306,32.42,153.36,153.34,5.23837114]
[1750143865598,32.42,153.36,153.33,0.28432314]
[1750143865804,32.42,153.36,153.34,5.23837114]
[1750143867475,32.42,153.36,153.35,5.23837114]
[1750143868302,5.74,153.36,153.35,5.23837114]
[1750143870012,5.74,153.36,153.34,5.23837114]
[1750143870013,12.26060511,153.36,153.34,5.23837114]
[1750143870181,5.74,153.36,153.34,5.23837114]
[1750143870385,26.68,153.35,153.34,5.23837114]
[1750143871128,26.68,153.35,153.34,5.52269428]
[1750143871411,5.74,153.36,153.34,5.52269428]
[1750143871706,5.74,153.36,153.35,31.23837114]
[1750143876010,12.26060511,153.36,153.33,5.23837114]
[1750143876388,26.66,153.35,153.33,5.23837114]
[1750143877995,5.23837114,153.34,153.29,6.0977]
[1750143878200,5.23837114,153.31,153.27,6.77737114]
[1750143878513,26.66,153.3,153.27,5.23837114]
[1750143878715,26.66,153.3,153.28,5.23837114]
[1750143879217,33.1832072,153.3,153.28,5.23837114]
[1750143880415,38.42157834,153.3,153.26,5.23837114]
[1750143880588,38.42157834,153.3,153.23,1.539]
[1750143880589,10.97837114,153.29,153.23,1.539]
[1750143880910,26.68,153.28,153.25,5.38053271]
[1750143881410,26.68,153.28,153.26,5.23837114]
[1750143881914,33.20410888,153.28,153.26,5.23837114]
[1750143882914,26.68,153.28,153.26,5.23837114]
[1750143886922,26.68,153.28,153.27,5.23837114]
[1750143887128,26.68,153.28,153.27,5.52269428]
[1750143887698,5.74,153.29,153.27,5.52269428]
[1750143887927,5.74,153.29,153.28,5.23837114]
[1750143888222,32.42,153.29,153.28,5.23837114]
[1750143889918,32.42,153.29,153.28,26.0]
[1750143890124,32.42,153.29,153.28,31.23837114]
[1750143890924,5.74,153.29,153.28,31.23837114]
[1750143891722,5.74,153.29,153.28,31.52269428]
[1750143892408,5.74,153.29,153.28,38.04670263]
[1750143893122,6.52205415,153.33,153.29,0.28432314]
[1750143893327,26.68,153.32,153.31,5.23837114]
[1750143895420,26.68,153.32,153.31,5.52269428]
[1750143895618,5.74,153.34,153.31,5.52269428]
[1750143895813,26.68,153.33,153.32,5.23837114]
[1750143896223,6.52072031,153.36,153.32,5.23837114]
[1750143896418,32.42,153.35,153.34,5.23837114]
[1750143896833,5.74,153.35,153.34,5.23837114]
[1750143897024,32.42,153.35,153.34,5.23837114]
[1750143897628,38.94113252,153.35,153.31,26.28432314]
[1750143897817,38.94113252,153.35,153.33,5.23837114]
[1750143898533,12.26113252,153.35,153.33,5.23837114]
[1750143898749,26.68,153.34,153.33,5.23837114]
[1750143900834,33.20145558,153.34,153.33,5.23837114]
[1750143901023,38.43982672,153.34,153.3,5.23837114]
[1750143901331,38.43982672,153.34,153.25,1.5087]
[1750143901332,5.23837114,153.31,153.25,1.5087]
[1750143901527,26.66,153.3,153.27,5.23837114]
[1750143901916,26.66,153.3,153.26,5.52269428]
[1750143902313,26.66,153.3,153.27,5.23837114]
[1750143902536,26.66,153.3,153.29,5.23837114]
[1750143903131,26.66,153.3,153.28,31.23837114]
[1750143903530,26.66,153.3,153.28,26.0]
[1750143903726,26.66,153.3,153.28,31.23837114]
[1750143904644,33.18324178,153.3,153.28,31.23837114]
[1750143904825,33.18324178,153.3,153.27,5.23837114]
[1750143905220,26.66,153.3,153.28,5.23837114]
[1750143905426,33.18323224,153.3,153.28,5.23837114]
[1750143906026,33.18323224,153.3,153.27,5.23837114]
[1750143906544,33.18323224,153.3,153.28,5.23837114]
[1750143908357,33.18323224,153.3,153.26,0.28432314]
[1750143908358,33.18323224,153.3,153.27,5.23837114]
[1750143911046,33.18323224,153.3,153.28,5.23837114]
[1750143911246,6.52283011,153.31,153.29,5.23837114]
[1750143911444,26.66,153.3,153.26,6.8090625]
[1750143911929,10.72464611,153.35,153.29,0.28432314]
[1750143912134,26.66,153.34,153.29,0.28432314]
[1750143912519,26.66,153.34,153.31,5.23837114]
[1750143912718,8.63971725,153.35,153.31,5.23837114]
[1750143912919,32.38,153.33,153.31,5.23837114]
[1750143913142,6.52230628,153.32,153.31,5.23837114]
[1750143913445,6.52230628,153.32,153.3,5.23837114]
[1750143913650,38.90201273,153.33,153.3,5.23837114]
[1750143913824,38.90201273,153.33,153.31,5.23837114]
[1750143914245,12.24201273,153.33,153.31,5.23837114]
[1750143914445,26.66,153.32,153.31,5.23837114]
[1750143914622,6.52150311,153.34,153.31,5.23837114]
[1750143914623,3.40134611,153.35,153.31,5.23837114]
[1750143914825,32.38,153.34,153.33,5.23837114]
[1750143915552,38.90145558,153.34,153.32,5.23837114]
[1750143916059,12.24145558,153.34,153.32,5.23837114]
[1750143916347,26.66,153.33,153.32,5.23837114]
[1750143918145,12.24145558,153.34,153.32,5.23837114]
[1750143918349,26.66,153.33,153.32,5.23837114]
[1750143919848,33.18188091,153.33,153.32,5.23837114]
[1750143920553,33.18188091,153.33,153.29,0.28432314]
[1750143920754,33.18188091,153.33,153.31,5.23837114]
[1750143923255,38.42025205,153.33,153.25,6.204]
[1750143923458,51.12008318,153.33,153.26,5.23837114]
[1750143923662,5.23837114,153.31,153.26,5.23837114]
[1750143923830,5.23837114,153.31,153.27,5.23837114]
[1750143923831,26.66,153.3,153.27,5.23837114]
[1750143924234,33.18328388,153.3,153.27,5.23837114]
[1750143925240,33.18328388,153.3,153.26,0.28432314]
[1750143925442,33.18328388,153.3,153.29,5.23837114]
[1750143926336,26.66,153.3,153.29,5.23837114]
[1750143930954,26.66,153.3,153.26,6.80898377]
[1750143931260,26.66,153.3,153.29,5.23837114]
[1750143933641,26.66,153.3,153.26,6.80901523]
[1750143933958,26.66,153.3,153.29,5.23837114]
[1750143934340,26.66,153.3,153.26,6.80901523]
[1750143934541,26.66,153.3,153.29,5.23837114]
[1750143936562,26.66,153.3,153.26,6.80899297]
[1750143936863,26.66,153.3,153.28,5.23837114]
[1750143937360,26.66,153.3,153.29,5.23837114]
[1750143941750,26.66,153.3,153.26,6.80903256]
[1750143941953,26.66,153.3,153.28,5.23837114]
[1750143943163,33.18318944,153.3,153.28,5.23837114]
[1750143943470,26.66,153.3,153.28,5.23837114]
[1750143944863,33.18321574,153.3,153.28,5.23837114]
[1750143945065,33.18321574,153.3,153.27,5.23837114]
[1750143947061,33.18321574,153.3,153.25,6.52516894]
[1750143947373,5.23837114,153.29,153.24,6.79327114]
[1750143947537,26.66,153.28,153.24,6.79327114]
[1750143948458,31.89837114,153.28,153.23,5.23837114]
[1750143948644,31.89837114,153.28,153.22,26.0]
[1750143948845,5.23837114,153.26,153.21,11.85897114]
[1750143949051,5.72,153.26,153.25,5.23837114]
[1750143949255,32.38,153.26,153.25,5.23837114]
[1750143949651,38.90485971,153.26,153.25,5.23837114]
[1750143950744,44.14323085,153.26,153.22,0.28432314]
[1750143951069,44.14323085,153.26,153.21,11.85897114]
[1750143951305,60.45538013,153.26,153.21,11.85897114]
[1750143951564,55.21700899,153.26,153.2,5.23837114]
[1750143951741,55.21700899,153.26,153.21,5.23837114]
[1750143951948,60.45538013,153.26,153.21,5.23837114]
[1750143952556,5.23837114,153.25,153.21,5.23837114]
[1750143952872,26.66,153.24,153.21,5.23837114]
[1750143953444,6.52613717,153.23,153.18,0.28432314]
[1750143953659,26.66,153.22,153.19,5.23837114]
[1750143953860,26.66,153.22,153.2,5.23837114]
[1750143955475,18.64964886,153.3,153.21,5.23837114]
[1750143955647,37.61837114,153.29,153.24,5.23837114]
[1750143955968,5.23837114,153.25,153.21,5.23837114]
[1750143956172,26.66,153.24,153.21,5.23837114]
[1750143957069,26.66,153.24,153.19,0.28432314]
[1750143957252,26.66,153.24,153.21,5.23837114]
[1750143957870,33.18607018,153.24,153.21,5.23837114]
[1750143958059,33.18607018,153.24,153.19,0.28432314]
[1750143958248,33.18607018,153.24,153.21,5.23837114]
[1750143958456,26.66,153.24,153.23,5.23837114]
[1750143960462,6.52546399,153.25,153.23,5.23837114]
[1750143960662,26.66,153.24,153.2,12.05009779]
[1750143960871,26.66,153.24,153.23,5.23837114]
[1750143961578,26.66,153.24,153.2,5.23837114]
[1750143962271,6.52613717,153.23,153.18,0.28432314]
[1750143962455,6.52613717,153.23,153.21,5.23837114]
[1750143962775,5.72,153.22,153.21,5.23837114]
[1750143963279,12.24656311,153.22,153.21,5.23837114]
[1750143965067,5.72,153.22,153.21,5.23837114]
[1750143965267,32.38,153.22,153.21,5.23837114]
[1750143966790,6.52400835,153.28,153.24,26.0]
[1750143966958,12.24400835,153.28,153.27,5.23837114]
[1750143967156,44.14237949,153.28,153.24,26.0]
[1750143967377,44.14237949,153.28,153.23,5.23837114]
[1750143967685,60.45240036,153.28,153.24,5.23837114]
[1750143967880,55.21402922,153.28,153.24,5.23837114]
[1750143968481,38.90400835,153.28,153.24,5.23837114]
[1750143968868,38.90400835,153.28,153.25,5.23837114]
[1750143971981,26.66,153.27,153.25,5.23837114]
[1750143973693,5.72,153.28,153.26,5.23837114]
[1750143973862,5.72,153.28,153.27,5.23837114]
[1750143974062,32.38,153.28,153.27,5.23837114]
[1750143974973,32.38,153.28,153.23,6.52597368]
[1750143974974,32.38,153.28,153.26,5.23837114]
[1750143975177,32.38,153.28,153.27,5.23837114]
[1750143975178,5.72,153.28,153.27,5.23837114]
[1750143975369,32.38,153.28,153.27,5.23837114]
[1750143976079,32.38,153.28,153.25,26.0]
[1750143976284,32.38,153.28,153.27,5.23837114]
[1750143976682,5.72,153.29,153.27,5.23837114]
[1750143976880,32.36,153.29,153.28,5.23837114]
[1750143977079,32.36,153.29,153.27,26.0]
[1750143977282,32.36,153.29,153.26,5.23837114]
[1750143977482,32.36,153.29,153.28,5.23837114]
[1750143979590,5.72,153.29,153.28,5.23837114]
[1750143979794,32.36,153.29,153.28,5.23837114]
[1750143985697,32.36,153.29,153.24,18.933972]
[1750143985698,38.88358275,153.29,153.26,5.23837114]
[1750143985873,38.88358275,153.29,153.25,26.0]
[1750143986073,38.88358275,153.29,153.27,5.23837114]
[1750143988902,38.88358275,153.29,153.28,5.23837114]
[1750143991499,5.72,153.29,153.28,5.23837114]
[1750143991878,32.36,153.29,153.28,5.23837114]
[1750143992189,5.72,153.29,153.28,5.23837114]
[1750143992390,6.52159378,153.34,153.29,0.14216157]
[1750143992597,32.34,153.33,153.29,0.28432314]
[1750143993515,5.7,153.33,153.29,0.28432314]
[1750143993677,26.64,153.32,153.29,0.28432314]
[1750143994015,26.64,153.32,153.31,5.23837114]
[1750143994191,32.34,153.33,153.31,5.52269428]
[1750143994506,32.34,153.33,153.32,5.23837114]
[1750143996199,9.9205404,153.38,153.32,12.04500056]
[1750143996506,32.34,153.37,153.33,0.28432314]
[1750143996889,26.64,153.36,153.33,8.10452314]
[1750143997091,5.7,153.37,153.35,26.0]
[1750143997424,16.9244978,153.4,153.38,0.28432314]
[1750143997425,10.40558707,153.4,153.38,0.28432314]
[1750143997582,10.40558707,153.4,153.39,5.23837114]
[1750143997583,37.04558707,153.4,153.39,5.23837114]
[1750143998209,5.7,153.42,153.39,5.23837114]
[1750143998418,26.64,153.41,153.38,0.28432314]
[1750143998591,26.64,153.41,153.4,5.23837114]
[1750143998914,5.7,153.42,153.4,5.23837114]
[1750143999213,5.7,153.42,153.41,5.23837114]
[1750143999395,32.34,153.42,153.41,5.23837114]
[1750143999979,38.85805501,153.42,153.38,0.28432314]
[1750144000183,38.85805501,153.42,153.39,5.23837114]
[1750144000403,5.23837114,153.41,153.36,5.23837114]
[1750144000611,26.62,153.4,153.38,5.23837114]
[1750144001517,26.62,153.4,153.39,5.23837114]
[1750144002111,12.21805501,153.42,153.39,5.23837114]
[1750144002312,26.62,153.41,153.39,5.23837114]
[1750144002513,12.21805501,153.42,153.4,5.23837114]
[1750144002718,26.62,153.41,153.4,5.23837114]
[1750144003515,26.62,153.41,153.39,5.23837114]
[1750144003703,26.62,153.41,153.38,5.23837114]
[1750144005216,6.51890482,153.4,153.38,5.23837114]
[1750144005521,26.62,153.39,153.38,5.23837114]
[1750144005689,26.62,153.39,153.36,5.23837114]
[1750144005891,26.62,153.39,153.34,0.28432314]
[1750144006108,26.62,153.39,153.35,5.23837114]
[1750144007317,6.51975485,153.38,153.35,5.23837114]
[1750144007612,26.62,153.37,153.35,5.23837114]
[1750144009228,26.62,153.37,153.36,5.23837114]
[1750144009727,33.14017995,153.37,153.36,5.23837114]
[1750144009908,6.52017995,153.37,153.36,5.23837114]
[1750144010107,33.14017995,153.37,153.36,5.23837114]
[1750144013515,33.14017995,153.37,153.33,33.8202]
[1750144013724,33.14017995,153.37,153.34,5.23837114]
[1750144013898,33.14017995,153.37,153.35,5.23837114]
[1750144014826,33.14017995,153.37,153.36,5.23837114]
[1750144015325,26.62,153.37,153.36,5.23837114]
[1750144015823,26.62,153.37,153.34,0.28432314]
[1750144016018,26.62,153.37,153.36,5.23837114]
[1750144017218,33.14017995,153.37,153.36,5.23837114]
[1750144017415,33.14017995,153.37,153.35,5.23837114]
[1750144018223,33.14017995,153.37,153.36,5.23837114]
[1750144019929,33.14017995,153.37,153.35,5.23837114]
[1750144020332,54.67900098,153.37,153.33,26.0]
[1750144020808,33.14017995,153.37,153.34,5.23837114]
[1750144021416,33.14017995,153.37,153.36,5.23837114]
[1750144021620,33.14017995,153.37,153.35,5.23837114]
[1750144021814,33.14017995,153.37,153.34,5.23837114]
[1750144022705,33.14017995,153.37,153.35,5.23837114]
[1750144022934,6.52017995,153.37,153.36,5.23837114]
[1750144023104,33.14017995,153.37,153.36,5.23837114]
[1750144023304,26.62,153.37,153.36,5.23837114]
[1750144023510,5.23837114,153.41,153.36,5.23837114]
[1750144023715,33.13890482,153.4,153.33,26.28432314]
[1750144023919,33.13890482,153.4,153.36,5.23837114]
[1750144024623,33.13890482,153.4,153.37,5.23837114]
[1750144026435,6.51890482,153.4,153.37,5.23837114]
[1750144026612,26.62,153.39,153.37,5.23837114]
[1750144026933,26.62,153.39,153.33,32.80616829]
[1750144027226,26.62,153.39,153.36,5.23837114]
[1750144027717,6.51975485,153.38,153.36,5.23837114]
[1750144027917,26.62,153.37,153.36,5.23837114]
[1750144028327,5.23837114,153.41,153.36,5.23837114]
[1750144028328,6.519464,153.39,153.36,5.23837114]
[1750144028521,6.519464,153.39,153.38,5.23837114]
[1750144028714,33.139464,153.39,153.38,5.23837114]
[1750144029633,33.139464,153.39,153.37,5.23837114]
[1750144030107,33.139464,153.39,153.35,0.28432314]
[1750144030410,33.139464,153.39,153.37,5.23837114]
[1750144031036,33.139464,153.39,153.35,0.28432314]
[1750144031335,6.51906863,153.4,153.38,5.23837114]
[1750144031520,6.51906863,153.4,153.39,5.23837114]